bitfinex/quotes_ETHUSD_20250815
["timestamp","ask_amount","ask_price","bid_price","bid_amount"]
[1755260490232,2.7139401,4621.2,4621.1,0.04]
[1755260490440,3.0614556,4621.2,4621.1,0.04]
[1755260490586,3.0537401,4621.2,4621.1,0.04]
[1755260490786,3.6037401,4621.2,4621.1,0.04]
[1755260491021,4.49281511,4621.2,4621.1,0.04]
[1755260491219,3.0537401,4621.2,4621.1,0.04]
[1755260491721,0.8898,4621.2,4621.1,0.04]
[1755260491930,5.75766657,4621.8,4621.1,0.04]
[1755260492148,2.1636294,4621.9,4621.1,0.04]
[1755260492291,2.16357124,4622.0,4621.1,2.20398558]
[1755260492710,2.16368348,4621.8,4621.1,0.04]
[1755260493228,0.4587,4622.1,4621.1,0.04]
[1755260493408,2.16366833,4621.8,4621.1,0.04]
[1755260493725,0.3053236,4622.0,4621.1,0.04]
[1755260493915,0.4587,4622.1,4621.1,0.04]
[1755260494113,0.4587,4622.1,4621.3,2.16386826]
[1755260494430,0.4587,4622.1,4621.1,0.04]
[1755260494630,2.16360779,4622.0,4621.1,2.2039733]
[1755260494934,0.4587,4622.7,4621.5,2.16379293]
[1755260495136,2.16329705,4622.6,4621.7,2.16367035]
[1755260495494,0.4587,4622.7,4621.8,0.02163659]
[1755260495792,2.16305076,4623.1,4622.2,2.16346827]
[1755260495990,2.16305076,4623.1,4622.3,2.16341442]
[1755260496192,1e-08,4623.2,4621.3,2.16389327]
[1755260496417,1e-08,4623.2,4623.1,2.16305076]
[1755260496616,1e-08,4623.2,4623.0,2.16309709]
[1755260497152,1e-08,4623.2,4622.8,0.108]
[1755260497352,3.05285076,4623.1,4622.8,0.108]
[1755260497674,3.05285076,4623.1,4621.3,8.74984955]
[1755260497675,0.8898,4623.0,4621.5,2.16379771]
[1755260497818,1e-08,4623.2,4622.7,0.108]
[1755260498213,1e-08,4623.2,4622.7,2.16319358]
[1755260498420,1e-08,4623.2,4623.0,0.108]
[1755260498844,1e-08,4623.2,4623.1,2.16305076]
[1755260499027,1e-08,4623.2,4623.1,0.44341868]
[1755260499332,1e-08,4623.2,4622.9,2.16312195]
[1755260499546,1e-08,4623.2,4623.1,2.16305076]
[1755260500864,1e-08,4623.2,4623.1,2.62855076]
[1755260501030,1e-08,4623.2,4623.1,2.16305076]
[1755260501234,1e-08,4623.2,4622.2,3.597]
[1755260501428,1e-08,4623.2,4622.3,0.3597]
[1755260501630,1e-08,4623.2,4622.2,5.1634674]
[1755260501831,1e-08,4623.2,4623.0,2.16305382]
[1755260502032,1e-08,4623.2,4622.0,0.4655]
[1755260502238,1e-08,4623.2,4622.2,2.16347193]
[1755260502431,1e-08,4623.2,4622.0,5.62901931]
[1755260502631,1e-08,4623.2,4620.2,2.16437887]
[1755260502632,1e-08,4623.2,4622.1,0.92250193]
[1755260502839,1e-08,4623.2,4621.7,5.75670599]
[1755260503034,1e-08,4623.2,4622.2,2.16342941]
[1755260503234,1e-08,4623.2,4621.7,3.593]
[1755260503468,1e-08,4623.2,4621.8,0.62222943]
[1755260504061,1e-08,4623.2,4622.6,2.16327668]
[1755260504245,1e-08,4623.2,4621.8,0.62222943]
[1755260504450,1e-08,4623.2,4621.9,2.16361236]
[1755260504648,1e-08,4623.2,4623.1,2.16305076]
[1755260505392,1e-08,4623.2,4623.1,2.59566781]
[1755260505541,1e-08,4623.2,4623.1,0.43261705]
[1755260505744,0.88900001,4623.2,4622.4,2.16337543]
[1755260506056,0.88900001,4623.2,4622.1,3.588]
[1755260506378,0.88900001,4623.2,4622.2,2.16347193]
[1755260506587,3.052005,4623.2,4622.1,5.75150955]
[1755260506886,3.052005,4623.2,4622.4,2.16336885]
[1755260507193,2.16313694,4623.0,4622.2,2.16346051]
[1755260507388,2.16305528,4623.1,4622.3,2.16342029]
[1755260507546,0.88900001,4623.2,4621.8,0.62222943]
[1755260507740,0.88900001,4623.2,4622.4,2.16333172]
[1755260507980,0.002,4623.6,4621.9,0.57859413]
[1755260508182,2.16310404,4623.0,4621.9,2.74218423]
[1755260508517,0.4587,4623.2,4622.2,2.16346148]
[1755260508671,0.4587,4623.2,4622.1,2.16350679]
[1755260508992,2.16309911,4623.0,4622.1,2.16350679]
[1755260509147,0.4587,4623.2,4621.9,0.57859413]
[1755260509344,0.002,4623.6,4622.7,2.16322223]
[1755260509560,0.002,4623.6,4622.8,2.1631778]
[1755260509777,0.108,4623.3,4622.6,0.108]
[1755260509961,0.002,4623.6,4623.2,2.16300397]
[1755260510176,0.108,4623.5,4623.0,2.16305442]
[1755260510356,0.4664155,4623.4,4622.9,0.108]
[1755260510701,0.108,4623.5,4623.1,2.16304819]
[1755260510900,0.108,4623.5,4622.8,2.16317714]
[1755260511261,0.108,4623.5,4623.0,2.16306292]
[1755260511493,0.108,4623.5,4623.1,2.16303058]
[1755260511795,0.108,4623.5,4623.0,0.0008]
[1755260512184,0.002,4623.6,4621.1,0.041]
[1755260512185,0.55,4623.2,4621.1,0.041]
[1755260512396,0.108,4621.9,4621.4,2.16383942]
[1755260512582,0.108,4621.9,4621.3,0.108]
[1755260513002,0.108,4621.9,4621.4,2.16384645]
[1755260513315,0.108,4621.9,4621.3,0.108]
[1755260513483,0.566,4621.9,4621.1,0.149]
[1755260513684,0.108,4621.9,4621.4,2.16381042]
[1755260513894,0.108,4621.9,4621.1,0.149]
[1755260514412,0.458,4622.1,4621.1,0.041]
[1755260514593,0.108,4621.6,4621.1,0.041]
[1755260515037,0.108,4621.6,4621.3,2.16389182]
[1755260515327,0.108,4621.6,4621.4,2.16384224]
[1755260515677,0.108,4621.6,4621.3,2.16389275]
[1755260515918,0.108,4621.6,4621.2,2.1639401]
[1755260516077,0.108,4621.6,4621.3,0.02163893]
[1755260516274,0.108,4621.6,4621.5,2.16379963]
[1755260517286,0.108,4621.9,4621.5,2.16379963]
[1755260517688,0.108,4621.9,4621.3,2.27184694]
[1755260517893,0.458,4622.1,4621.1,0.041]
[1755260517894,2.16351874,4622.1,4621.1,0.041]
[1755260518097,0.108,4621.6,4621.1,0.041]
[1755260518303,0.458,4621.5,4621.1,0.041]
[1755260518523,0.458,4621.4,4621.1,0.041]
[1755260518726,0.108,4621.2,4621.1,0.041]
[1755260519178,0.55,4622.2,4621.1,0.041]
[1755260519374,0.108,4621.5,4621.1,0.041]
[1755260519631,0.108,4621.5,4621.3,0.001]
[1755260520226,0.458,4621.4,4621.3,0.001]
[1755260520455,0.458,4622.4,4621.9,2.16360917]
[1755260520756,0.108,4622.0,4621.3,0.54]
[1755260520960,0.108,4622.0,4621.3,0.109]
[1755260521246,0.458,4621.9,4621.3,0.109]
[1755260521652,0.108,4621.7,4621.3,2.16488888]
[1755260521961,0.458,4622.5,4621.3,0.001]
[1755260522133,0.108,4622.4,4621.9,2.16360716]
[1755260522451,0.108,4622.4,4621.6,0.108]
[1755260522605,0.002,4623.2,4622.0,0.431]
[1755260522805,0.002,4623.2,4622.7,2.16323793]
[1755260523006,0.11,4623.2,4622.5,2.27128584]
[1755260523234,0.568,4623.2,4622.5,0.108]
[1755260523577,0.568,4623.2,4622.7,2.16319945]
[1755260523854,0.458,4623.1,4621.8,2.16365918]
[1755260524007,0.108,4622.9,4622.3,2.16342513]
[1755260524204,0.108,4622.9,4622.5,2.16333087]
[1755260524454,0.002,4623.2,4622.7,0.108]
[1755260524609,0.002,4623.2,4623.1,2.16305076]
[1755260525005,0.002,4623.2,4623.1,2.70205076]
[1755260525204,0.002,4623.2,4623.1,0.108]
[1755260525450,0.568,4623.2,4622.7,2.16319147]
[1755260525603,0.458,4623.1,4622.5,2.1632899]
[1755260525810,0.108,4622.9,4622.6,2.16328377]
[1755260526058,0.002,4623.2,4622.7,0.431]
[1755260526208,0.002,4623.2,4623.1,2.16305076]
[1755260526923,0.002,4623.2,4623.1,2.59405076]
[1755260527437,0.002,4623.6,4623.5,2.16286363]
[1755260527602,0.002,4623.7,4623.6,5.16281685]
[1755260527603,1e-08,4623.7,4623.6,5.16281685]
[1755260527809,1e-08,4623.7,4623.6,5.77901685]
[1755260528037,0.002,4624.1,4624.0,2.16262975]
[1755260528450,0.002,4624.1,4624.0,0.108]
[1755260528809,0.11,4624.1,4623.7,2.16273823]
[1755260529048,0.458,4624.0,4623.2,2.16299458]
[1755260529247,0.458,4624.0,4623.1,0.108]
[1755260529548,2.27068154,4623.9,4623.1,0.108]
[1755260529849,0.9191155,4623.8,4622.0,3.0]
[1755260530007,2.16295889,4623.3,4622.7,0.108]
[1755260530340,0.9114,4623.2,4622.5,0.108]
[1755260530544,2.16309458,4623.1,4622.5,0.108]
[1755260530844,2.1631293,4623.0,4622.5,0.108]
[1755260531025,2.27105604,4623.1,4622.5,0.108]
[1755260531232,0.108,4623.1,4622.5,0.108]
[1755260531435,0.55,4623.0,4622.5,0.108]
[1755260531760,2.16347193,4622.2,4622.1,0.04]
[1755260531960,2.16346146,4622.3,4622.1,0.0408]
[1755260532166,4.0685696,4622.7,4622.1,0.0408]
[1755260532329,0.9653572,4622.9,4622.1,0.0408]
[1755260532528,0.458,4622.6,4622.1,0.0408]
[1755260532725,2.16338067,4622.4,4622.1,0.0408]
[1755260533032,2.16342513,4622.3,4622.1,0.0408]
[1755260533239,3.07482513,4622.3,4622.1,0.0408]
[1755260533573,0.5119572,4622.9,4622.1,0.0408]
[1755260533957,2.67510845,4622.9,4622.1,0.0408]
[1755260534159,0.5119572,4622.9,4622.1,0.0408]
[1755260534468,0.5119572,4622.9,4622.2,0.22043208]
[1755260534772,0.5119572,4622.9,4622.3,0.02163425]
[1755260534932,2.16289712,4623.5,4622.5,2.16328748]
[1755260535128,0.91857371,4623.8,4622.1,0.0408]
[1755260535460,0.002,4624.2,4623.1,2.1630346]
[1755260535766,0.002,4624.2,4623.8,2.16269595]
[1755260535922,0.002,4624.2,4623.9,2.16267557]
[1755260536130,0.002,4624.2,4623.4,2.16291041]
[1755260536649,2.62062975,4624.0,4623.1,2.16304858]
[1755260536856,0.458,4624.0,4622.2,0.431]
[1755260537176,0.002,4624.1,4622.4,2.16337833]
[1755260537337,0.002,4623.8,4623.7,2.16277007]
[1755260537537,0.002,4623.8,4623.7,2.59377007]
[1755260537967,0.002,4623.8,4623.7,2.16277007]
[1755260541483,0.002,4623.8,4622.6,3.431]
[1755260541688,0.9114,4623.7,4623.3,0.108]
[1755260541886,2.16288325,4623.5,4622.1,0.0408]
[1755260542036,2.16288325,4623.5,4622.6,0.108]
[1755260542037,0.108,4623.4,4622.6,0.108]
[1755260542477,0.108,4623.4,4622.7,2.16319359]
[1755260542782,0.002,4623.8,4622.1,3.0408]
[1755260542783,0.002,4623.8,4622.8,0.02163191]
[1755260542950,0.108,4623.7,4623.1,2.16301139]
[1755260543285,0.33526337,4623.7,4623.0,0.108]
[1755260543442,0.108,4623.7,4623.4,2.16287206]
[1755260543982,0.108,4623.7,4623.0,0.108]
[1755260544276,0.108,4623.7,4622.8,2.16318369]
[1755260544277,0.002,4623.8,4623.7,2.16277007]
[1755260544481,0.002,4623.8,4623.7,2.18439777]
[1755260544647,0.002,4623.8,4623.6,0.108]
[1755260545038,0.9348,4623.7,4623.6,0.108]
[1755260545449,3.21329417,4623.7,4623.1,0.108]
[1755260545680,0.9348,4623.7,4622.7,3.591]
[1755260545889,0.4911,4623.7,4622.8,0.02163191]
[1755260546180,0.108,4623.7,4623.5,2.16284114]
[1755260546680,0.108,4623.7,4623.5,2.16282126]
[1755260546853,0.108,4623.7,4623.1,0.108]
[1755260547049,0.9348,4623.6,4622.1,0.0696]
[1755260547250,0.108,4623.3,4622.7,0.108]
[1755260547645,2.16301076,4623.2,4622.7,0.108]
[1755260547842,0.9348,4623.1,4622.1,2.23309839]
[1755260548165,2.16321789,4622.8,4622.1,0.0696]
[1755260548347,0.108,4622.7,4622.1,2.3411073]
[1755260548547,0.108,4622.7,4622.1,0.1776]
[1755260548752,0.108,4622.7,4622.1,0.4117158]
[1755260548978,0.108,4622.7,4622.1,2.57522775]
[1755260549362,0.108,4622.7,4622.1,0.4117158]
[1755260549569,0.108,4622.7,4622.1,0.1776]
[1755260549746,0.108,4622.7,4622.4,2.16335682]
[1755260549947,0.108,4622.7,4622.1,0.1776]
[1755260550176,0.108,4622.7,4622.2,2.16347193]
[1755260550377,0.108,4622.7,4622.4,2.1633358]
[1755260550579,0.4911,4623.6,4622.5,2.16331571]
[1755260550788,2.16304806,4623.2,4622.3,2.16339066]
[1755260550995,0.002,4624.1,4622.1,0.1776]
[1755260551160,2.65569198,4624.1,4623.2,2.16298011]
[1755260551360,0.108,4623.5,4622.9,2.27110664]
[1755260551557,0.108,4623.5,4622.9,0.108]
[1755260551762,0.108,4623.0,4622.3,0.108]
[1755260551990,0.5991,4623.0,4622.3,0.108]
[1755260552191,0.108,4622.5,4622.1,0.0696]
[1755260552420,0.9348,4622.4,4622.3,0.0008]
[1755260552599,0.108,4622.5,4622.3,0.0008]
[1755260552946,0.108,4622.9,4622.3,0.1088]
[1755260553151,0.108,4622.9,4622.8,2.16319113]
[1755260553385,0.4437,4623.7,4622.9,2.16314434]
[1755260553597,0.108,4623.4,4623.2,2.16299134]
[1755260553890,0.4931,4623.8,4623.2,2.16299134]
[1755260554061,0.11,4623.8,4623.2,0.108]
[1755260554265,0.11,4623.8,4623.3,2.16295719]
[1755260554467,0.11,4623.8,4623.4,2.16290744]
[1755260554654,0.11,4623.8,4623.2,0.108]
[1755260554856,1.4848,4623.7,4622.3,0.0008]
[1755260555085,0.002,4623.9,4622.8,22.83279874]
[1755260555287,0.002,4623.9,4623.8,2.1627233]
[1755260555487,0.002,4623.9,4623.8,5.8697233]
[1755260556405,1e-08,4624.1,4624.0,2.16262975]
[1755260556695,1e-08,4624.2,4624.1,5.16258298]
[1755260557054,1e-08,4624.2,4624.1,2.16258298]
[1755260557252,1e-08,4624.2,4624.0,3.597]
[1755260557453,1e-08,4624.2,4624.1,2.27058298]
[1755260557770,1e-08,4624.2,4624.1,5.27058298]
[1755260557965,1e-08,4624.2,4624.1,7.01512441]
[1755260558670,1e-08,4624.2,4624.1,1.25654143]
[1755260558854,1e-08,4624.2,4624.1,0.108]
[1755260559380,1e-08,4624.2,4624.1,2.27058298]
[1755260559575,1e-08,4624.2,4624.1,0.108]
[1755260559881,0.49110001,4624.2,4623.8,0.108]
[1755260560198,0.49110001,4624.2,4623.9,2.16266139]
[1755260560797,1e-08,4624.2,4623.8,0.108]
[1755260560953,1e-08,4624.2,4623.9,2.16267652]
[1755260561174,1e-08,4624.2,4624.1,2.16258298]
[1755260561802,0.00120001,4624.3,4623.8,0.108]
[1755260562006,0.4911,4624.2,4623.8,0.108]
[1755260562293,0.00120001,4624.3,4623.8,0.108]
[1755260562490,0.00120001,4624.3,4624.2,2.16253622]
[1755260563258,0.00120001,4624.3,4624.1,2.16257653]
[1755260563453,0.00120001,4624.3,4623.9,2.16267652]
[1755260563454,0.00120001,4624.3,4623.8,0.108]
[1755260563800,0.00120001,4624.3,4624.0,2.162601]
[1755260563964,0.00120001,4624.3,4624.1,2.16256775]
[1755260564158,0.00120001,4624.3,4624.2,2.16253622]
[1755260565290,0.49230001,4624.3,4622.8,0.59348518]
[1755260565478,0.93600001,4624.3,4623.9,2.16267643]
[1755260565678,0.44490001,4624.3,4623.9,2.16267393]
[1755260565883,0.4911,4624.2,4623.9,2.16267393]
[1755260566086,0.44490001,4624.3,4623.8,2.27072227]
[1755260566270,0.00120001,4624.3,4623.9,2.16267652]
[1755260566464,0.00120001,4624.3,4623.9,0.58456765]
[1755260566667,0.00120001,4624.3,4623.9,2.16266884]
[1755260566892,0.00120001,4624.3,4623.8,0.108]
[1755260566893,0.4911,4624.2,4623.8,0.108]
[1755260567079,0.9348,4624.1,4623.8,0.108]
[1755260567277,0.108,4623.9,4623.2,0.108]
[1755260567682,0.108,4623.6,4623.5,2.16285495]
[1755260568000,0.108,4623.9,4623.2,2.27099513]
[1755260568299,0.108,4623.9,4623.8,2.1627233]
[1755260568500,0.108,4623.9,4623.2,2.27099513]
[1755260568501,0.108,4623.9,4623.7,0.0216277]
[1755260568722,0.108,4623.9,4623.6,2.16281685]
[1755260568864,0.108,4623.9,4623.8,2.1627233]
[1755260569381,0.00120001,4624.3,4623.5,3.581]
[1755260569701,0.00120001,4624.3,4624.0,2.16261483]
[1755260569865,0.00120001,4624.3,4623.5,3.581]
[1755260570272,0.00120001,4624.3,4624.0,2.16259509]
[1755260570472,0.00120001,4624.3,4623.5,3.581]
[1755260570473,0.00120001,4624.3,4624.1,2.16258254]
[1755260571275,0.00120001,4624.3,4624.1,2.16254357]
[1755260571476,0.00120001,4624.3,4623.5,3.581]
[1755260571813,0.00120001,4624.3,4624.2,2.16253622]
[1755260572538,0.00120001,4624.3,4624.1,2.16257898]
[1755260572742,0.4933,4624.2,4624.1,0.0008]
[1755260572895,0.945,4624.2,4624.1,0.0008]
[1755260573743,0.9519155,4624.2,4624.1,0.0008]
[1755260574295,1.26346686,4624.2,4624.1,0.0008]
[1755260574545,0.945,4624.2,4624.1,0.0008]
[1755260575746,0.4933,4624.2,4624.1,0.0008]
[1755260575895,0.945,4624.2,4624.1,0.0008]
[1755260576705,0.4933,4624.2,4624.1,0.0008]
[1755260577942,0.00120001,4624.3,4624.1,2.16335875]
[1755260578262,0.4933,4624.2,4624.1,0.0008]
[1755260578552,0.945,4624.2,4624.1,0.0008]
[1755260578906,1.26277697,4624.2,4624.1,0.0008]
[1755260579108,3.22245172,4624.2,4624.1,0.0008]
[1755260579408,1.0599155,4624.2,4624.1,0.0008]
[1755260579804,3.22245172,4624.2,4624.1,0.0008]
[1755260580005,1.0599155,4624.2,4624.1,0.0008]
[1755260580754,3.77245172,4624.2,4624.1,0.0008]
[1755260580902,7.93006349,4624.2,4624.1,0.0008]
[1755260581101,7.92314799,4624.2,4624.1,0.0008]
[1755260581503,5.75961177,4624.2,4624.1,0.0008]
[1755260581945,7.92214799,4624.2,4624.1,0.0008]
[1755260582152,8.3837453,4624.2,4624.1,0.0008]
[1755260582351,8.38390618,4624.2,4624.1,0.0008]
[1755260583303,1.053,4624.2,4624.1,0.0008]
[1755260583504,0.108,4624.2,4624.1,0.0008]
[1755260587769,0.00120001,4624.3,4624.1,0.0008]
[1755260588119,0.00120001,4624.3,4624.1,2.16337493]
[1755260588719,0.00120001,4624.3,4624.1,0.0008]
[1755260588928,0.4933,4624.2,4624.1,0.0008]
[1755260589136,0.945,4624.2,4624.1,0.0008]
[1755260589337,0.945,4624.2,4624.1,0.0018]
[1755260590343,0.9442,4624.2,4624.1,0.0018]
[1755260590667,0.00120001,4624.3,4624.1,0.0018]
[1755260591377,3.16423622,4624.2,4624.1,0.0018]
[1755260591541,3.71543317,4624.2,4624.1,0.0018]
[1755260591741,6.71543317,4624.2,4624.1,0.0018]
[1755260591940,10.71690449,4624.2,4624.1,0.0018]
[1755260592362,11.21020449,4624.2,4624.1,0.0018]
[1755260593072,10.74781767,4624.2,4624.1,0.0018]
[1755260593534,8.58528145,4624.2,4624.1,0.0018]
[1755260593935,5.58528145,4624.2,4624.1,0.0018]
[1755260594929,0.54428145,4624.2,4624.1,0.0018]
[1755260595126,0.55120001,4624.3,4624.1,0.0018]
[1755260595673,0.00120001,4624.3,4624.1,0.0018]
[1755260597185,0.00120001,4624.3,4624.2,2.16253622]
[1755260597472,0.00120001,4624.3,4624.2,2.16333622]
[1755260597767,0.00120001,4624.3,4624.2,0.0008]
[1755260598065,0.10920001,4624.3,4624.2,0.0008]
[1755260599270,1.05420001,4624.3,4624.2,0.0008]
[1755260599481,4.08923675,4624.3,4624.2,0.0008]
[1755260599641,4.09615225,4624.3,4624.2,0.0008]
[1755260599972,7.62423675,4624.3,4624.2,0.0008]
[1755260600166,8.08659837,4624.3,4624.2,0.0008]
[1755260600388,8.08659726,4624.3,4624.2,0.0008]
[1755260601534,4.13750001,4624.3,4624.2,0.0008]
[1755260601763,3.53220001,4624.3,4624.2,0.0008]
[1755260601964,3.64020001,4624.3,4624.2,0.0008]
[1755260602149,0.00120001,4624.3,4624.2,0.0008]
[1755260602486,0.00120001,4624.3,4624.2,2.16333622]
[1755260602702,0.00120001,4624.3,4624.2,3.11415722]
[1755260603764,0.00040001,4624.3,4624.2,3.11415722]
[1755260605173,0.00040001,4624.3,4624.2,0.0008]
[1755260605376,3.67798946,4624.3,4623.1,0.001]
[1755260605576,3.67798946,4624.3,4622.3,0.001]
[1755260605577,2.16300397,4623.2,4622.3,0.001]
[1755260605781,3.0,4624.0,4619.1,2.74830283]
[1755260605782,3.0,4622.8,4620.1,2.20445493]
[1755260606111,33.7582159,4623.1,4620.1,0.04]
[1755260606112,0.55,4621.6,4620.1,0.04]
[1755260606265,0.55,4621.0,4620.1,0.04]
[1755260606473,2.71440846,4620.2,4620.1,0.04]
[1755260606808,7.71238252,4620.2,4620.1,0.04]
[1755260606977,7.22450846,4620.2,4620.1,0.04]
[1755260607615,6.67450846,4620.2,4620.1,0.04]
[1755260607913,3.545,4620.2,4620.1,0.04]
[1755260608068,2.16398561,4621.2,4620.1,0.04]
[1755260608069,0.4977,4620.9,4620.1,0.04]
[1755260608266,3.543,4621.3,4620.1,0.04]
[1755260608493,3.543,4621.3,4620.2,2.16439419]
[1755260608697,3.543,4621.3,4620.5,2.16422529]
[1755260608897,3.543,4621.3,4620.7,2.16416647]
[1755260609068,3.543,4621.3,4620.2,0.43689173]
[1755260609268,2.71417425,4620.7,4620.1,0.04]
[1755260609594,2.71417425,4620.7,4618.2,2.16531452]
[1755260609595,2.16486607,4619.3,4618.2,2.16531452]
[1755260609797,3.546,4619.2,4618.0,0.4612]
[1755260609975,3.546,4619.2,4617.4,0.3016]
[1755260610171,4.5111,4619.2,4618.1,2.20537769]
[1755260610371,3.546,4619.2,4618.1,0.04]
[1755260610586,3.546,4619.2,4618.8,2.16504287]
[1755260610809,3.546,4619.2,4618.4,2.16523636]
[1755260611025,3.546,4619.2,4618.1,0.04]
[1755260611026,3.546,4619.2,4619.0,2.16492686]
[1755260611307,3.546,4619.2,4618.9,2.16501252]
[1755260611479,3.545,4619.6,4619.0,2.16495768]
[1755260611680,3.545,4619.6,4618.6,2.16511434]
[1755260611914,0.9651,4619.5,4618.5,2.16518929]
[1755260612074,2.71487703,4619.2,4618.1,0.04]
[1755260612274,2.72179253,4619.2,4618.1,0.04]
[1755260612639,1.5151,4619.2,4618.1,0.04]
[1755260612973,0.9651,4619.2,4618.1,0.04]
[1755260613290,3.13689253,4619.2,4618.2,2.16530834]
[1755260613496,1.35603775,4619.2,4618.1,0.04]
[1755260613674,0.55,4619.5,4618.4,2.16523985]
[1755260613903,0.55,4619.5,4618.1,0.04]
[1755260613904,0.19828195,4620.5,4618.7,0.3416]
[1755260614088,3.545,4620.8,4619.2,0.02164877]
[1755260614475,3.545,4620.8,4619.1,0.04]
[1755260614476,0.4674,4620.7,4619.1,0.04]
[1755260614695,0.55,4619.8,4619.1,0.04]
[1755260614904,0.55,4619.6,4619.1,0.04]
[1755260615083,3.5539155,4619.5,4619.1,0.04]
[1755260615287,5.82287703,4619.2,4619.1,0.04]
[1755260615610,0.55,4618.2,4618.1,0.04]
[1755260615772,4.207,4618.2,4618.1,0.04]
[1755260616176,3.658,4618.2,4618.1,0.04]
[1755260616492,3.6124,4618.2,4618.1,0.04]
[1755260617012,7.87060709,4618.2,4618.1,0.04]
[1755260617219,5.70526129,4618.2,4618.1,0.04]
[1755260617379,7.87060709,4618.2,4618.1,0.04]
[1755260617579,5.70526129,4618.2,4618.1,0.04]
[1755260617792,7.87060709,4618.2,4618.1,0.04]
[1755260617994,11.52375763,4618.2,4618.1,0.04]
[1755260618221,11.7212854,4618.2,4618.1,0.04]
[1755260618529,12.28950927,4618.2,4618.1,0.04]
[1755260618732,13.16079918,4618.2,4618.1,1e-08]
[1755260618895,14.30864738,4618.2,4618.1,1e-08]
[1755260619431,14.30864738,4618.2,4617.1,0.04]
[1755260619432,2.71581477,4617.2,4617.1,1e-08]
[1755260619630,8.11295429,4617.2,4617.1,1e-08]
[1755260619806,13.77035945,4617.2,4617.1,1e-08]
[1755260620006,2.16628395,4616.2,4616.1,1e-08]
[1755260620334,0.55,4615.7,4614.1,0.04]
[1755260620541,2.82475333,4615.2,4614.1,0.04]
[1755260620842,3.805,4615.2,4614.6,2.16701742]
[1755260621140,0.248,4615.2,4615.1,2.20680028]
[1755260621486,0.248,4615.2,4615.1,0.04]
[1755260622930,4.1264463,4615.2,4615.1,0.04]
[1755260623132,1.94595961,4615.2,4615.1,0.04]
[1755260623355,7.67071294,4615.2,4615.1,0.04]
[1755260623638,5.00725961,4615.2,4615.1,0.04]
[1755260623793,6.7203463,4615.2,4615.1,0.04]
[1755260624130,0.79025961,4615.2,4615.1,0.04]
[1755260624344,4.00259297,4615.2,4615.1,0.04]
[1755260624540,4.00159297,4615.2,4615.1,0.04]
[1755260624744,4.00359297,4615.2,4615.1,0.04]
[1755260625037,4.19989147,4615.2,4615.1,0.04]
[1755260625401,7.33663395,4615.2,4615.1,0.04]
[1755260625750,8.75540059,4615.2,4615.1,0.04]
[1755260625901,8.61540059,4615.2,4615.1,0.04]
[1755260626240,7.23031144,4615.2,4615.1,0.04]
[1755260626445,7.24527772,4615.2,4615.1,0.04]
[1755260626604,6.67831144,4615.2,4615.1,0.04]
[1755260627898,6.67431144,4615.2,4615.1,0.04]
[1755260628103,4.50755811,4615.2,4615.1,0.04]
[1755260628341,0.95455811,4615.2,4615.1,0.5012]
[1755260628550,0.39289147,4615.2,4615.1,3.00960028]
[1755260628731,0.19659297,4615.2,4615.1,3.00960028]
[1755260629096,4.11806161,4616.3,4615.2,2.16675333]
[1755260629323,4.11806161,4616.3,4615.1,1.09859713]
[1755260629324,0.64877305,4616.2,4616.1,2.16633088]
[1755260629531,0.64877305,4616.2,4615.3,0.4612]
[1755260629734,0.45232187,4616.1,4615.7,2.16650986]
[1755260629930,0.64877176,4616.0,4615.7,2.16650986]
[1755260630236,3.552,4616.5,4616.4,2.1661901]
[1755260630465,4.57009731,4616.5,4616.1,2.16631475]
[1755260630613,0.4530357,4616.4,4616.1,2.4507323]
[1755260630966,4.11706161,4616.5,4616.0,0.4612]
[1755260630967,0.4530357,4616.3,4616.0,2.62757048]
[1755260631110,0.4530357,4616.2,4616.1,2.16633088]
[1755260631425,0.4530357,4616.2,4616.1,2.96913088]
[1755260631744,0.4530357,4616.2,4616.1,2.62753088]
[1755260632047,0.4530357,4616.2,4616.1,3.10692644]
[1755260632349,0.4530357,4616.2,4616.0,2.16637072]
[1755260632558,4.11406161,4616.3,4616.0,2.16637072]
[1755260632559,0.4522357,4616.1,4616.0,2.16637781]
[1755260632861,0.56506161,4616.8,4616.7,2.16604934]
[1755260633063,0.56506161,4616.8,4616.7,2.63834934]
[1755260633226,0.19704172,4616.8,4616.7,2.63834934]
[1755260633427,0.19704172,4616.8,4616.7,2.16604934]
[1755260633629,0.19704172,4616.8,4616.2,2.16628135]
[1755260633828,0.75826676,4616.4,4615.5,0.4723]
[1755260634057,0.75826676,4616.4,4615.7,2.16651862]
[1755260634058,0.56868333,4615.8,4615.7,2.16651862]
[1755260634243,0.19738741,4615.8,4615.7,2.16651862]
[1755260635067,3.551,4615.9,4615.8,2.16647168]
[1755260635227,3.947827,4615.9,4615.3,0.001]
[1755260635429,1.14320029,4615.9,4615.7,2.16651862]
[1755260635629,1.14320029,4615.9,4615.8,2.16647168]
[1755260635931,1.14320029,4615.9,4615.4,0.4723]
[1755260635932,0.19840517,4615.9,4615.4,0.4723]
[1755260636132,0.76208504,4615.5,4615.4,0.4723]
[1755260636365,0.76250024,4615.6,4615.4,0.4723]
[1755260637033,0.76250024,4615.6,4615.3,0.001]
[1755260637364,0.76250024,4615.4,4615.3,0.001]
[1755260637548,1.14312756,4615.6,4615.3,0.001]
[1755260637737,0.76278085,4615.4,4615.3,0.001]
[1755260637938,0.76278074,4615.4,4615.3,0.001]
[1755260638266,0.19870091,4615.4,4615.3,0.001]
[1755260638429,1.34182847,4615.4,4615.3,0.001]
[1755260638625,0.7633085,4615.4,4615.3,0.9229]